{"text_format":"1","workbook":"xlsx","n_sheets":1,"sheets":["ЛОТО КАРТА"],"not_rendered":{"charts":0,"images":0,"macros":1,"external_links":1,"defined_names":93,"comments":0,"pivot_tables":0},"unopened":[],"bounds":{"document_bytes":16777216,"sheet_cells":100000,"rows_first":2000,"rows_last":500,"rows_between":2000,"halvings":0,"cell_chars":16384,"cell_head_chars":4096},"cells_cut":0,"cells_raw":0,"read":"whole","date_system":"1900"}

{"sheet":"ЛОТО КАРТА","index":0,"n_rows":141,"n_cols":57,"rows_kept":141,"cut":false,"hidden":false,"merged":[[10,20,11,32],[10,33,11,37],[11,44,11,45],[11,47,11,51],[11,52,11,53],[11,54,11,55],[0,1,4,56],[6,20,8,37],[6,43,6,56],[7,43,7,56],[9,43,9,50],[9,51,9,56],[13,2,14,10],[13,11,14,55],[15,2,16,10],[15,11,16,55],[17,2,18,10],[17,11,18,41],[17,42,18,44],[17,45,18,46],[17,47,18,55],[25,2,29,11],[25,12,29,55],[31,2,32,3],[31,30,32,31],[32,4,33,26],[32,32,33,54],[20,9,22,29],[20,30,22,55],[23,9,24,21],[23,22,24,29],[23,30,24,31],[23,32,24,43],[23,44,24,46],[23,47,24,50],[23,51,24,53],[23,54,24,55],[45,4,45,14],[45,16,45,26],[45,32,45,42],[45,44,45,54],[46,4,49,14],[46,16,49,26],[46,32,49,42],[46,44,49,54],[35,4,42,14],[35,16,44,26],[35,32,42,42],[35,44,44,54],[43,4,44,5],[43,6,44,14],[43,32,44,33],[43,34,44,42],[51,2,52,3],[51,30,52,31],[52,4,53,26],[52,32,53,54],[55,4,62,14],[55,16,64,26],[55,32,62,42],[55,44,64,54],[63,4,64,5],[63,6,64,14],[71,2,72,3],[71,30,72,31],[72,4,73,26],[72,32,73,54],[63,32,64,33],[63,34,64,42],[65,4,65,14],[65,16,65,26],[65,32,65,42],[65,44,65,54],[75,4,82,14],[75,16,84,26],[75,32,82,42],[75,44,84,54],[83,4,84,5],[83,6,84,14],[83,32,84,33],[83,34,84,42],[66,4,69,14],[66,16,69,26],[66,32,69,42],[66,44,69,54],[91,2,93,55],[94,2,96,10],[94,11,96,19],[94,20,96,28],[94,29,96,37],[94,38,96,46],[94,47,96,55],[85,4,85,14],[85,16,85,26],[85,32,85,42],[85,44,85,54],[86,4,89,14],[86,16,89,26],[86,32,89,42],[86,44,89,54],[103,11,108,19],[103,20,108,28],[103,29,108,37],[103,38,108,46],[103,47,108,55],[104,3,105,4],[104,5,105,9],[97,11,102,19],[97,20,102,28],[97,29,102,37],[97,38,102,46],[97,47,102,55],[98,3,99,4],[98,5,99,9],[115,11,120,19],[115,20,120,28],[115,29,120,37],[115,38,120,46],[115,47,120,55],[116,3,117,4],[116,5,117,9],[109,11,114,19],[109,20,114,28],[109,29,114,37],[109,38,114,46],[109,47,114,55],[110,3,111,4],[110,5,111,9],[127,11,132,19],[127,20,132,28],[127,29,132,37],[127,38,132,46],[127,47,132,55],[128,3,129,4],[128,5,129,9],[121,11,126,19],[121,20,126,28],[121,29,126,37],[121,38,126,46],[121,47,126,55],[122,3,123,4],[122,5,123,9],[140,1,144,56],[134,4,135,11],[134,15,135,23],[134,27,135,32],[134,36,135,43],[134,47,135,55],[137,4,138,11],[137,15,138,23],[137,27,138,32],[137,36,138,43],[137,47,138,55]]}
[null,"LOCKOUT TAGOUT\nУПРАВЛЕНИЕ ОПАСНЫМИ ЭНЕРГИЯМИ"]
[]
[]
[]
[]
[]
[null,null,null,null,null,null,null,null,null,null,null,null,null,null,null,null,null,null,null,null,"АО \"ЕВРАЗ ЗСМК\" РП",null,null,null,null,null,null,null,null,null,null,null,null,null,null,null,null,null,null,null,null,null,null,"УТВЕРЖДАЮ:"]
[null,null,null,null,null,null,null,null,null,null,null,null,null,null,null,null,null,null,null,null,null,null,null,null,null,null,null,null,null,null,null,null,null,null,null,null,null,null,null,null,null,null,null,"Начальник энергетического цеха"]
[]
[null,null,null,null,null,null,null,null,null,null,null,null,null,null,null,null,null,null,null,null,null,null,null,null,null,null,null,null,null,null,null,null,null,null,null,null,null,null,null,null,null,null,null,null,null,null,null,null,null,null,null,"В.В. Радаев"]
[null,null,null,null,null,null,null,null,null,null,null,null,null,null,null,null,null,null,null,null,"ЛОТО ПРОЦЕДУРА №",null,null,null,null,null,null,null,null,null,null,null,null,{"$f":"VLOOKUP($L$14,[1]ПЛК!$A$3:$AN$104,2,0)","v":401}]
[null,null,null,null,null,null,null,null,null,null,null,null,null,null,null,null,null,null,null,null,null,null,null,null,null,null,null,null,null,null,null,null,null,null,null,null,null,null,null,null,null,null,null,"\"",null,null,"\"",null,null,null,null,null,20,null,null,null,"г."]
[]
[null,null,"ОБОРУДОВАНИЕ:",null,null,null,null,null,null,null,null,"НАСОС ЦЕНТРОБЕЖНЫЙ №3 1Д800-56"]
[]
[null,null,"ЦЕХ:",null,null,null,null,null,null,null,null,"ЭНЕРГЕТИЧЕСКИЙ ЦЕХ"]
[]
[null,null,"МЕСТО:",null,null,null,null,null,null,null,null,"НАСОСНАЯ СТАНЦИЯ 2-ГО ВОДОПОДЪЕМА",null,null,null,null,null,null,null,null,null,null,null,null,null,null,null,null,null,null,null,null,null,null,null,null,null,null,null,null,null,null,"Вер.",null,null,1,null,"2019-05-31"]
[]
[]
[null,null,null,null,null,null,null,null,null,"Для безопасной работы с оборудованием необходимо заблокировать",null,null,null,null,null,null,null,null,null,null,null,null,null,null,null,null,null,null,null,null,"    НЕОБХОДИМОЕ КОЛИЧЕСТВО"]
[]
[]
[null,null,null,null,null,null,null,null,null,"ЛОТО-ТОЧЕК:",null,null,null,null,null,null,null,null,null,null,null,null,{"$f":"VLOOKUP($L$14,[1]ПЛК!$A$3:$AN$104,3,0)","v":5},null,null,null,null,null,null,null,null,null,"БЛОКИРАТОРОВ:",null,null,null,null,null,null,null,null,null,null,null,{"$f":"VLOOKUP($L$14,[1]ПЛК!$A$3:$AN$104,4,0)","v":5},null,null,"БИРОК:",null,null,null,{"$f":"VLOOKUP($L$14,[1]ПЛК!$A$3:$AN$104,5,0)","v":5}]
[]
[null,null,"КОММЕНТАРИЙ:",null,null,null,null,null,null,null,null,null,"LOTO-карта применяется:\n  1. Выполнении работ по ремонту/замене запорной арматуры или ее узлов и деталей.\n  2. Выполнении работ по на участке водовода, прилегающего к ответным фланцам задвижки."]
[]
[]
[]
[]
[]
[null,null,1,null,null,null,null,null,null,null,null,null,null,null,null,null,null,null,null,null,null,null,null,null,null,null,null,null,null,null,2]
[null,null,null,null,{"$f":"VLOOKUP(G44,[1]ОР!$A:$M,3,0)","v":"ЭЛЕКТРИЧЕСТВО (U = 6,0 кВ)"},null,null,null,null,null,null,null,null,null,null,null,null,null,null,null,null,null,null,null,null,null,null,null,null,null,null,null,{"$f":"VLOOKUP(AI44,[1]ОР!$A:$M,3,0)","v":"ВОДА (0,1 - 1,0 КГС/СМ2)"}]
[]
[]
[]
[]
[]
[]
[]
[]
[]
[]
[null,null,null,null,{"$f":"G44","v":"E 3-Р"},null,{"$f":"VLOOKUP($L$14,[1]ПЛК!$A$3:$AN$104,11,0)","v":"E 3-Р"},null,null,null,null,null,null,null,null,null,null,null,null,null,null,null,null,null,null,null,null,null,null,null,null,null,{"$f":"AI44","v":"W 2-11а"},null,{"$f":"VLOOKUP($L$14,[1]ПЛК!$A$3:$AN$104,12,0)","v":"W 2-11а"}]
[]
[null,null,null,null,"ОБОРУДОВАНИЕ:",null,null,null,null,null,null,null,null,null,null,null,"БЛОКИРАТОР:",null,null,null,null,null,null,null,null,null,null,null,null,null,null,null,"ОБОРУДОВАНИЕ:",null,null,null,null,null,null,null,null,null,null,null,"БЛОКИРАТОР:"]
[null,null,null,null,{"$f":"VLOOKUP($G$44,[1]ОР!$A:$M,2,0)","v":"Рубильник вкл/откл электродвигателя насоса №3 (6,0 кВ)"},null,null,null,null,null,null,null,null,null,null,null,{"$f":"VLOOKUP($G$44,[1]ОР!$A:$M,13,0)","v":"Диэлектрический тросовый блокиратор PRO-LOCK"},null,null,null,null,null,null,null,null,null,null,null,null,null,null,null,{"$f":"VLOOKUP(AI44,[1]ОР!$A:$M,2,0)","v":"Затвор поворотный фланцевый №11а Ду 400 мм с электрическим приводом на линии всаса"},null,null,null,null,null,null,null,null,null,null,null,{"$f":"VLOOKUP(AI44,[1]ОР!$A:$M,13,0)","v":"Диэлектрический тросовый блокиратор PRO-LOCK"}]
[]
[]
[]
[]
[null,null,3,null,null,null,null,null,null,null,null,null,null,null,null,null,null,null,null,null,null,null,null,null,null,null,null,null,null,null,4]
[null,null,null,null,{"$f":"VLOOKUP(G64,[1]ОР!$A:$M,3,0)","v":"ВОДА (1,0 - 10,0 КГС/СМ2)"},null,null,null,null,null,null,null,null,null,null,null,null,null,null,null,null,null,null,null,null,null,null,null,null,null,null,null,{"$f":"VLOOKUP(AI64,[1]ОР!$A:$M,3,0)","v":"ЭЛЕКТРИЧЕСТВО (U = 0,4 кВ)"}]
[]
[]
[]
[]
[]
[]
[]
[]
[]
[]
[null,null,null,null,{"$f":"G64","v":"W 2-79а"},null,{"$f":"VLOOKUP($L$14,[1]ПЛК!$A$3:$AN$104,13,0)","v":"W 2-79а"},null,null,null,null,null,null,null,null,null,null,null,null,null,null,null,null,null,null,null,null,null,null,null,null,null,{"$f":"AI64","v":"E ЗА-11а"},null,{"$f":"VLOOKUP($L$14,[1]ПЛК!$A$3:$AN$104,14,0)","v":"E ЗА-11а"}]
[]
[null,null,null,null,"ОБОРУДОВАНИЕ:",null,null,null,null,null,null,null,null,null,null,null,"БЛОКИРАТОР:",null,null,null,null,null,null,null,null,null,null,null,null,null,null,null,"ОБОРУДОВАНИЕ:",null,null,null,null,null,null,null,null,null,null,null,"БЛОКИРАТОР:"]
[null,null,null,null,{"$f":"VLOOKUP(G64,[1]ОР!$A:$M,2,0)","v":"Затвор поворотный фланцевый №79а Ду 400 мм с электрическим приводом на линии нагнетания"},null,null,null,null,null,null,null,null,null,null,null,{"$f":"VLOOKUP(G64,[1]ОР!$A:$M,13,0)","v":"Диэлектрический тросовый блокиратор PRO-LOCK"},null,null,null,null,null,null,null,null,null,null,null,null,null,null,null,{"$f":"VLOOKUP(AI64,[1]ОР!$A:$M,2,0)","v":"Автоматический выключатель электропривода затвора  11а (0,4 кВ)"},null,null,null,null,null,null,null,null,null,null,null,{"$f":"VLOOKUP(AI64,[1]ОР!$A:$M,13,0)","v":"Блокиратор автоматических выключаталей Tight Grip 493B"}]
[]
[]
[]
[]
[null,null,5,null,null,null,null,null,null,null,null,null,null,null,null,null,null,null,null,null,null,null,null,null,null,null,null,null,null,null,6]
[null,null,null,null,{"$f":"VLOOKUP(G84,[1]ОР!$A:$M,3,0)","v":"ЭЛЕКТРИЧЕСТВО (U = 0,4 кВ)"},null,null,null,null,null,null,null,null,null,null,null,null,null,null,null,null,null,null,null,null,null,null,null,null,null,null,null,{"$f":"VLOOKUP(AI84,[1]ОР!$A:$M,3,0)","v":0}]
[]
[]
[]
[]
[]
[]
[]
[]
[]
[]
[null,null,null,null,{"$f":"G84","v":"E ЗА-79а"},null,{"$f":"VLOOKUP($L$14,[1]ПЛК!$A$3:$AN$104,15,0)","v":"E ЗА-79а"},null,null,null,null,null,null,null,null,null,null,null,null,null,null,null,null,null,null,null,null,null,null,null,null,null,{"$f":"AI84","v":"Нет"},null,{"$f":"VLOOKUP($L$14,[1]ПЛК!$A$3:$AN$104,16,0)","v":"Нет"}]
[]
[null,null,null,null,"ОБОРУДОВАНИЕ:",null,null,null,null,null,null,null,null,null,null,null,"БЛОКИРАТОР:",null,null,null,null,null,null,null,null,null,null,null,null,null,null,null,"ОБОРУДОВАНИЕ:",null,null,null,null,null,null,null,null,null,null,null,"БЛОКИРАТОР:"]
[null,null,null,null,{"$f":"VLOOKUP(G84,[1]ОР!$A:$M,2,0)","v":"Автоматический выключатель электропривода затвора  79а (0,4 кВ)"},null,null,null,null,null,null,null,null,null,null,null,{"$f":"VLOOKUP(G84,[1]ОР!$A:$M,13,0)","v":"Блокиратор автоматических выключаталей Tight Grip 493B"},null,null,null,null,null,null,null,null,null,null,null,null,null,null,null,{"$f":"VLOOKUP(AI84,[1]ОР!$A:$M,2,0)","v":0},null,null,null,null,null,null,null,null,null,null,null,{"$f":"VLOOKUP(AI84,[1]ОР!$A:$M,13,0)","v":0}]
[]
[]
[]
[]
[null,null,"ОТКЛЮЧЕНИЕ ОБОРУДОВАНИЯ ПРОИЗВОДИТЕ СТРОГО В СООТВЕТСТВИИ С ДЕЙСТВУЮЩИМ ТЕХНОЛОГИЧЕСКИМ РЕГЛАМЕНТОМ"]
[]
[]
[null,null,"№ LOTO точки",null,null,null,null,null,null,null,null,"Источник",null,null,null,null,null,null,null,null,"Место установки точки разъединения",null,null,null,null,null,null,null,null,"Метод отключения",null,null,null,null,null,null,null,null,"Необходимость спуска энергии",null,null,null,null,null,null,null,null,"Проверка наличия энергии"]
[]
[]
[null,null,null,null,null,null,null,null,null,null,null,{"$f":"VLOOKUP(F99,[1]ОР!A:K,7,0)","v":"Электроэнергия напряжением  6,0 кВ"},null,null,null,null,null,null,null,null,{"$f":"VLOOKUP(F99,[1]ОР!A:K,8,0)","v":"Рукоять рубильник электродвигателя насоса №3 (6,0 кВ)"},null,null,null,null,null,null,null,null,{"$f":"VLOOKUP(F99,[1]ОР!A:K,9,0)","v":"Перевести рукоять атоматического выключателя в положение \"ОТКЛ\" и заблокировать"},null,null,null,null,null,null,null,null,{"$f":"VLOOKUP(F99,[1]ОР!A:K,10,0)","v":"Отсутствует"},null,null,null,null,null,null,null,null,{"$f":"VLOOKUP(F99,[1]ОР!A:K,11,0)","v":"Визуально по контрольно измерительным приборам расположенным на панели управления"}]
[null,null,null,{"$f":"F99","v":"E 3-Р"},null,{"$f":"G44","v":"E 3-Р"}]
[]
[]
[]
[]
[null,null,null,null,null,null,null,null,null,null,null,{"$f":"VLOOKUP(F105,[1]ОР!A:K,7,0)","v":"Техническая вода давлением 0,1 - 1,0 кгс/см2"},null,null,null,null,null,null,null,null,{"$f":"VLOOKUP(F105,[1]ОР!A:K,8,0)","v":"Штурвал ручного управления затвором №11а Ду 400 мм на линии всаса"},null,null,null,null,null,null,null,null,{"$f":"VLOOKUP(F105,[1]ОР!A:K,9,0)","v":"Закрыть затвор и заблокировать штурвал управления"},null,null,null,null,null,null,null,null,{"$f":"VLOOKUP(F105,[1]ОР!A:K,10,0)","v":"Открыть спускную задвижку для сброса давления воды из полости трубопровода"},null,null,null,null,null,null,null,null,{"$f":"VLOOKUP(F105,[1]ОР!A:K,11,0)","v":"Визуально по истечению воды из полости трубопровода"}]
[null,null,null,{"$f":"F105","v":"W 2-11а"},null,{"$f":"AI44","v":"W 2-11а"}]
[]
[]
[]
[]
[null,null,null,null,null,null,null,null,null,null,null,{"$f":"VLOOKUP(F111,[1]ОР!A:K,7,0)","v":"Техническая вода давлением 1,0 - 10,0 кгс/см2"},null,null,null,null,null,null,null,null,{"$f":"VLOOKUP(F111,[1]ОР!A:K,8,0)","v":"Штурвал ручного управления затвором №79а Ду 400 мм на линии нагнетания"},null,null,null,null,null,null,null,null,{"$f":"VLOOKUP(F111,[1]ОР!A:K,9,0)","v":"Закрыть затвор и заблокировать штурвал управления"},null,null,null,null,null,null,null,null,{"$f":"VLOOKUP(F111,[1]ОР!A:K,10,0)","v":"Открыть спускную задвижку для сброса давления воды из полости трубопровода"},null,null,null,null,null,null,null,null,{"$f":"VLOOKUP(F111,[1]ОР!A:K,11,0)","v":"Визуально по истечению воды из полости трубопровода"}]
[null,null,null,{"$f":"F111","v":"W 2-79а"},null,{"$f":"G64","v":"W 2-79а"}]
[]
[]
[]
[]
[null,null,null,null,null,null,null,null,null,null,null,{"$f":"VLOOKUP(F117,[1]ОР!A:K,7,0)","v":"Электроэнергия напряжением 0,4 кВ"},null,null,null,null,null,null,null,null,{"$f":"VLOOKUP(F117,[1]ОР!A:K,8,0)","v":"Флажок автоматического выключателя электропривода затвора 11а (0,4 кВ)"},null,null,null,null,null,null,null,null,{"$f":"VLOOKUP(F117,[1]ОР!A:K,9,0)","v":"Перевести флажок атоматического выключателя в положение \"ОТКЛ\" и заблокировать"},null,null,null,null,null,null,null,null,{"$f":"VLOOKUP(F117,[1]ОР!A:K,10,0)","v":"Отсутствует"},null,null,null,null,null,null,null,null,{"$f":"VLOOKUP(F117,[1]ОР!A:K,11,0)","v":"Визуально по контрольно измерительным приборам расположенным на панели управления"}]
[null,null,null,{"$f":"F117","v":"E ЗА-11а"},null,{"$f":"AI64","v":"E ЗА-11а"}]
[]
[]
[]
[]
[null,null,null,null,null,null,null,null,null,null,null,{"$f":"VLOOKUP(F123,[1]ОР!A:K,7,0)","v":"Электроэнергия напряжением 0,4 кВ"},null,null,null,null,null,null,null,null,{"$f":"VLOOKUP(F123,[1]ОР!A:K,8,0)","v":"Флажок автоматического выключателя электропривода затвора 79а (0,4 кВ)"},null,null,null,null,null,null,null,null,{"$f":"VLOOKUP(F123,[1]ОР!A:K,9,0)","v":"Перевести флажок атоматического выключателя в положение \"ОТКЛ\" и заблокировать"},null,null,null,null,null,null,null,null,{"$f":"VLOOKUP(F123,[1]ОР!A:K,10,0)","v":"Отсутствует"},null,null,null,null,null,null,null,null,{"$f":"VLOOKUP(F123,[1]ОР!A:K,11,0)","v":"Визуально по контрольно измерительным приборам расположенным на панели управления"}]
[null,null,null,{"$f":"F123","v":"E ЗА-79а"},null,{"$f":"G84","v":"E ЗА-79а"}]
[]
[]
[]
[]
[null,null,null,null,null,null,null,null,null,null,null,{"$f":"VLOOKUP(F129,[1]ОР!A:K,7,0)","v":0},null,null,null,null,null,null,null,null,{"$f":"VLOOKUP(F129,[1]ОР!A:K,8,0)","v":0},null,null,null,null,null,null,null,null,{"$f":"VLOOKUP(F129,[1]ОР!A:K,9,0)","v":0},null,null,null,null,null,null,null,null,{"$f":"VLOOKUP(F129,[1]ОР!A:K,10,0)","v":0},null,null,null,null,null,null,null,null,{"$f":"VLOOKUP(F129,[1]ОР!A:K,11,0)","v":0}]
[null,null,null,{"$f":"F129","v":"Нет"},null,{"$f":"AI84","v":"Нет"}]
[]
[]
[]
[]
[]
[null,null,null,null,"МЕХАНИКА",null,null,null,null,null,null,null,null,null,null,"ЭЛЕКТРИЧЕСТВО",null,null,null,null,null,null,null,null,null,null,null,"ПАР",null,null,null,null,null,null,null,null,"ТЕРМОЭНЕРГИЯ",null,null,null,null,null,null,null,null,null,null,"ГИДРАВЛИКА"]
[]
[]
[null,null,null,null,"ХИМИЯ",null,null,null,null,null,null,null,null,null,null,"ПНЕВМАТИКА",null,null,null,null,null,null,null,null,null,null,null,"ГАЗ",null,null,null,null,null,null,null,null,"ГРАВИТАЦИЯ",null,null,null,null,null,null,null,null,null,null,"ВОДА"]
[]
[]
[null,"ВАША БЕЗОПАСНОСТЬ - В ВАШИХ РУКАХ"]